[Event "*** Titled Tuesday Blitz"]
[Site "Chess.com"]
[Date "2020.05.19"]
[Round "2"]
[White "andriipalchuk"]
[Black "Pedrada88"]
[Result "0-1"]
[WhiteElo "1886"]
[BlackElo "2358"]
[TimeControl "180+1"]
[EndTime "12:17:18 PDT"]
[Termination "Pedrada88 won by resignation"]

1. e4 {[%clk 0:03:00.9]} 1... c5 {[%clk 0:02:59.4]} 2. Nf3 {[%clk 0:03:00.9]}
2... Nc6 {[%clk 0:02:59.4]} 3. Bb5 {[%clk 0:03:00.2]} 3... Qb6 {[%clk
0:02:58.6]} 4. Nc3 {[%clk 0:02:59.5]} 4... e6 {[%clk 0:02:58.6]} 5. Bxc6 {[%clk
0:02:50.9]} 5... Qxc6 {[%clk 0:02:58.3]} 6. d4 {[%clk 0:02:51.6]} 6... cxd4
{[%clk 0:02:51.8]} 7. Qxd4 {[%clk 0:02:52.5]} 7... Nf6 {[%clk 0:02:50.2]} 8. e5
{[%clk 0:02:36.8]} 8... Bc5 {[%clk 0:02:49.8]} 9. Qf4 {[%clk 0:02:29.8]} 9...
Nd5 {[%clk 0:02:48]} 10. Nxd5 {[%clk 0:02:29.5]} 10... Qxd5 {[%clk 0:02:47.7]}
11. O-O {[%clk 0:02:29.5]} 11... O-O {[%clk 0:02:44.6]} 12. Be3 {[%clk
0:02:23.1]} 12... b6 {[%clk 0:02:33.2]} 13. Rfd1 {[%clk 0:02:17.1]} 13... Qc6
{[%clk 0:02:33.2]} 14. Bxc5 {[%clk 0:02:11.6]} 14... bxc5 {[%clk 0:02:32.1]} 15.
Ng5 {[%clk 0:01:58.3]} 15... Bb7 {[%clk 0:02:25.9]} 16. f3 {[%clk 0:01:58]}
16... c4 {[%clk 0:02:17.7]} 17. c3 {[%clk 0:01:54.9]} 17... Qb6+ {[%clk
0:02:16.2]} 18. Qd4 {[%clk 0:01:52.2]} 18... f6 {[%clk 0:02:05.3]} 19. exf6
{[%clk 0:01:42.9]} 19... gxf6 {[%clk 0:02:01]} 20. Qxb6 {[%clk 0:01:01.6]} 20...
axb6 {[%clk 0:02:01.9]} 21. Rxd7 {[%clk 0:01:02]} 21... Bc8 {[%clk 0:01:57.1]}
22. Nxe6 {[%clk 0:00:54.5]} 22... Bxd7 {[%clk 0:01:54.3]} 23. Nxf8 {[%clk
0:00:55.4]} 23... Kxf8 {[%clk 0:01:54.2]} 24. a3 {[%clk 0:00:55.3]} 24... Bf5
{[%clk 0:01:50.7]} 25. Rd1 {[%clk 0:00:54]} 25... Bd3 {[%clk 0:01:47.5]} 26. Kf2
{[%clk 0:00:54]} 26... Re8 {[%clk 0:01:43.3]} 27. Rd2 {[%clk 0:00:49.7]} 27...
Kf7 {[%clk 0:01:35.4]} 28. b3 {[%clk 0:00:44.5]} 28... b5 {[%clk 0:01:34.8]} 29.
a4 {[%clk 0:00:37.2]} 29... cxb3 {[%clk 0:01:20.7]} 30. a5 {[%clk 0:00:34.7]}
30... Bc2 {[%clk 0:01:01.9]} 31. a6 {[%clk 0:00:28.9]} 31... b2 {[%clk
0:01:00.2]} 0-1

[Event "*** Titled Tuesday Blitz"]
[Site "Chess.com"]
[Date "2020.05.19"]
[Round "2"]
[White "guillembaches"]
[Black "alertakobra"]
[Result "0-1"]
[WhiteElo "2418"]
[BlackElo "2228"]
[TimeControl "180+1"]
[EndTime "12:17:20 PDT"]
[Termination "alertakobra won by resignation"]

1. e4 {[%clk 0:03:00.9]} 1... e5 {[%clk 0:02:55.1]} 2. Nf3 {[%clk 0:03:01.3]}
2... Nc6 {[%clk 0:02:55]} 3. Nc3 {[%clk 0:03:01.7]} 3... Nf6 {[%clk 0:02:54.4]}
4. d4 {[%clk 0:03:02.1]} 4... exd4 {[%clk 0:02:54.2]} 5. Nxd4 {[%clk 0:03:02.4]}
5... Bb4 {[%clk 0:02:54.7]} 6. Nxc6 {[%clk 0:03:02.3]} 6... bxc6 {[%clk
0:02:55]} 7. Bd3 {[%clk 0:03:02.8]} 7... d5 {[%clk 0:02:55.2]} 8. Bd2 {[%clk
0:03:03.2]} 8... O-O {[%clk 0:02:40.9]} 9. O-O {[%clk 0:03:02.8]} 9... Re8
{[%clk 0:02:37]} 10. Nxd5 {[%clk 0:03:02.6]} 10... cxd5 {[%clk 0:02:31.6]} 11.
Bxb4 {[%clk 0:03:00.2]} 11... dxe4 {[%clk 0:02:30.7]} 12. Bb5 {[%clk 0:02:56.3]}
12... Bd7 {[%clk 0:02:28.6]} 13. Bxd7 {[%clk 0:02:56.3]} 13... Qxd7 {[%clk
0:02:25.7]} 14. Qxd7 {[%clk 0:02:53.2]} 14... Nxd7 {[%clk 0:02:26.6]} 15. Rad1
{[%clk 0:02:52.9]} 15... Nb6 {[%clk 0:02:23.7]} 16. b3 {[%clk 0:02:48.9]} 16...
a5 {[%clk 0:02:23.6]} 17. Bc5 {[%clk 0:02:43.6]} 17... a4 {[%clk 0:02:17.7]} 18.
Rfe1 {[%clk 0:02:37.7]} 18... h6 {[%clk 0:02:05.7]} 19. Rd4 {[%clk 0:02:20.5]}
19... f5 {[%clk 0:01:59.8]} 20. Red1 {[%clk 0:02:03.7]} 20... axb3 {[%clk
0:01:51]} 21. axb3 {[%clk 0:02:04.6]} 21... Re5 {[%clk 0:01:44.1]} 22. Bb4
{[%clk 0:01:45.9]} 22... Kh7 {[%clk 0:01:38.4]} 23. g3 {[%clk 0:01:39.2]} 23...
c5 {[%clk 0:01:37.8]} 24. Rd6 {[%clk 0:01:35.2]} 24... Nc8 {[%clk 0:01:38]} 25.
Bc3 {[%clk 0:01:26.6]} 25... Nxd6 {[%clk 0:01:33]} 26. Bxe5 {[%clk 0:01:26.2]}
26... Nf7 {[%clk 0:01:33.7]} 27. Bc3 {[%clk 0:01:21.5]} 27... Ra2 {[%clk
0:01:28.6]} 28. Rd7 {[%clk 0:01:10]} 28... Kg6 {[%clk 0:01:24.8]} 29. Rd2 {[%clk
0:01:06]} 29... Ng5 {[%clk 0:01:22.9]} 30. Kf1 {[%clk 0:00:58.6]} 30... e3
{[%clk 0:01:09.6]} 31. fxe3 {[%clk 0:00:55.5]} 31... Ne4 {[%clk 0:01:09.5]} 32.
Rd3 {[%clk 0:00:44]} 32... Rxc2 {[%clk 0:01:10.1]} 33. Be5 {[%clk 0:00:44]}
33... Rxh2 {[%clk 0:01:07.5]} 34. Rd7 {[%clk 0:00:43.7]} 34... Nd2+ {[%clk
0:01:04.1]} 0-1

[Event "*** Titled Tuesday Blitz"]
[Site "Chess.com"]
[Date "2020.05.19"]
[Round "2"]
[White "FLamps8"]
[Black "promen1999"]
[Result "0-1"]
[WhiteElo "2550"]
[BlackElo "2888"]
[TimeControl "180+1"]
[EndTime "12:17:24 PDT"]
[Termination "promen1999 won by resignation"]

1. d4 {[%clk 0:03:00.9]} 1... Nf6 {[%clk 0:02:59]} 2. Nf3 {[%clk 0:02:58.6]}
2... g6 {[%clk 0:02:58.4]} 3. Nc3 {[%clk 0:02:57.2]} 3... d5 {[%clk 0:02:57.6]}
4. Bf4 {[%clk 0:02:57.3]} 4... Bg7 {[%clk 0:02:54.4]} 5. e3 {[%clk 0:02:57.5]}
5... O-O {[%clk 0:02:51.5]} 6. Be2 {[%clk 0:02:56.5]} 6... c5 {[%clk 0:02:48.2]}
7. Ne5 {[%clk 0:02:56.2]} 7... Nc6 {[%clk 0:02:46.4]} 8. O-O {[%clk 0:02:51.1]}
8... cxd4 {[%clk 0:02:39]} 9. exd4 {[%clk 0:02:45.1]} 9... Bf5 {[%clk
0:02:38.8]} 10. Nxc6 {[%clk 0:02:26.7]} 10... bxc6 {[%clk 0:02:38.4]} 11. Bd3
{[%clk 0:02:27.3]} 11... Bxd3 {[%clk 0:02:25.7]} 12. Qxd3 {[%clk 0:02:28.2]}
12... Nd7 {[%clk 0:02:26.2]} 13. Rfe1 {[%clk 0:02:23.1]} 13... e6 {[%clk
0:02:26.2]} 14. Na4 {[%clk 0:02:09.3]} 14... Qf6 {[%clk 0:02:17.1]} 15. Be3
{[%clk 0:02:02.3]} 15... e5 {[%clk 0:02:16]} 16. dxe5 {[%clk 0:01:40]} 16...
Nxe5 {[%clk 0:02:16.9]} 17. Qc3 {[%clk 0:01:11.6]} 17... Qh4 {[%clk 0:02:16.4]}
18. Bd4 {[%clk 0:00:24.7]} 18... Ng4 {[%clk 0:02:09.4]} 19. Bxg7 {[%clk
0:00:24.1]} 19... Qxh2+ {[%clk 0:02:09.4]} 20. Kf1 {[%clk 0:00:24.2]} 20... Rfe8
{[%clk 0:02:08.2]} 21. Rxe8+ {[%clk 0:00:16.3]} 21... Rxe8 {[%clk 0:02:07.9]}
22. Qh3 {[%clk 0:00:17.2]} 22... Qf4 {[%clk 0:01:58.8]} 23. Qg3 {[%clk
0:00:16.7]} 23... Qxg3 {[%clk 0:01:52.7]} 24. fxg3 {[%clk 0:00:17.1]} 24... Kxg7
{[%clk 0:01:53.4]} 25. Rc1 {[%clk 0:00:15.5]} 25... Re3 {[%clk 0:01:46.5]} 26.
c4 {[%clk 0:00:13.6]} 26... d4 {[%clk 0:01:42.7]} 27. Rd1 {[%clk 0:00:12.2]}
27... Re4 {[%clk 0:01:34.3]} 28. Nc5 {[%clk 0:00:12.1]} 28... Ne3+ {[%clk
0:01:34.5]} 29. Ke2 {[%clk 0:00:11.6]} 29... Re5 {[%clk 0:01:35]} 30. Nd3 {[%clk
0:00:09.8]} 30... Re7 {[%clk 0:01:29.5]} 31. Rc1 {[%clk 0:00:08.9]} 31... Nf5+
{[%clk 0:01:24.3]} 32. Kd2 {[%clk 0:00:08.7]} 32... Nxg3 {[%clk 0:01:24.4]} 33.
c5 {[%clk 0:00:07.9]} 33... Re2+ {[%clk 0:01:22.5]} 34. Kd1 {[%clk 0:00:07.5]}
34... Rxg2 {[%clk 0:01:22.6]} 35. Ne5 {[%clk 0:00:07.5]} 35... Ne4 {[%clk
0:01:16.6]} 36. Nxc6 {[%clk 0:00:06.6]} 36... Rg1+ {[%clk 0:01:16.7]} 37. Kc2
{[%clk 0:00:06.7]} 37... d3+ {[%clk 0:01:17.1]} 38. Kxd3 {[%clk 0:00:05.5]}
38... Rxc1 {[%clk 0:01:17.2]} 0-1

[Event "*** Titled Tuesday Blitz"]
[Site "Chess.com"]
[Date "2020.05.19"]
[Round "2"]
[White "zurzan"]
[Black "froylanajedrez"]
[Result "0-1"]
[WhiteElo "1894"]
[BlackElo "2357"]
[TimeControl "180+1"]
[EndTime "12:17:25 PDT"]
[Termination "froylanajedrez won by resignation"]

1. f4 {[%clk 0:03:00.9]} 1... Nf6 {[%clk 0:02:58.4]} 2. Nf3 {[%clk 0:03:00.2]}
2... g6 {[%clk 0:02:58.3]} 3. g3 {[%clk 0:03:00.4]} 3... Bg7 {[%clk 0:02:58.2]}
4. Bg2 {[%clk 0:03:01.3]} 4... O-O {[%clk 0:02:57.1]} 5. O-O {[%clk 0:03:02.2]}
5... d6 {[%clk 0:02:57.1]} 6. c3 {[%clk 0:03:03.1]} 6... Nbd7 {[%clk 0:02:56.4]}
7. d3 {[%clk 0:03:04]} 7... e5 {[%clk 0:02:52.4]} 8. Qe1 {[%clk 0:03:04.9]} 8...
e4 {[%clk 0:02:50.6]} 9. Nh4 {[%clk 0:02:56.2]} 9... Re8 {[%clk 0:02:46.1]} 10.
dxe4 {[%clk 0:02:48.3]} 10... Nxe4 {[%clk 0:02:44.7]} 11. Nd2 {[%clk 0:02:45.3]}
11... Ndf6 {[%clk 0:02:38]} 12. Nxe4 {[%clk 0:02:43.5]} 12... Nxe4 {[%clk
0:02:37.2]} 13. f5 {[%clk 0:02:31.9]} 13... Qe7 {[%clk 0:02:20.7]} 14. fxg6
{[%clk 0:02:09.4]} 14... hxg6 {[%clk 0:02:17]} 15. Bf3 {[%clk 0:02:02.4]} 15...
Bh3 {[%clk 0:02:12]} 16. Ng2 {[%clk 0:02:00.8]} 16... Rad8 {[%clk 0:01:56.3]}
17. Bf4 {[%clk 0:01:55]} 17... d5 {[%clk 0:01:45.7]} 18. Rd1 {[%clk 0:01:51.6]}
18... c6 {[%clk 0:01:42.1]} 19. Bxe4 {[%clk 0:01:31.3]} 19... Qxe4 {[%clk
0:01:40.1]} 20. Rf2 {[%clk 0:01:28.7]} 20... d4 {[%clk 0:01:32.7]} 21. e3 {[%clk
0:01:12.9]} 21... dxe3 {[%clk 0:01:19.5]} 22. Nxe3 {[%clk 0:01:06.2]} 22... Rd3
{[%clk 0:01:05.8]} 23. Rxd3 {[%clk 0:01:05.3]} 23... Qxd3 {[%clk 0:01:06.7]} 24.
Qd2 {[%clk 0:00:58.6]} 24... Qe4 {[%clk 0:01:01.5]} 25. Ng2 {[%clk 0:00:46.3]}
25... Bf8 {[%clk 0:00:53]} 26. b4 {[%clk 0:00:33.9]} 26... Bg7 {[%clk
0:00:47.6]} 27. Ne1 {[%clk 0:00:17.5]} 27... Qxe1+ {[%clk 0:00:45.2]} 0-1

[Event "*** Titled Tuesday Blitz"]
[Site "Chess.com"]
[Date "2020.05.19"]
[Round "2"]
[White "Matveev_Vladimir"]
[Black "Dhaydon19"]
[Result "1/2-1/2"]
[WhiteElo "2498"]
[BlackElo "2727"]
[TimeControl "180+1"]
[EndTime "12:17:26 PDT"]
[Termination "Game drawn by agreement"]

1. d4 {[%clk 0:03:00.9]} 1... c6 {[%clk 0:02:51.7]} 2. c4 {[%clk 0:03:00.9]}
2... d5 {[%clk 0:02:52.5]} 3. Nf3 {[%clk 0:03:01.4]} 3... Nf6 {[%clk 0:02:52.6]}
4. Qc2 {[%clk 0:03:01.9]} 4... e6 {[%clk 0:02:52.9]} 5. g3 {[%clk 0:02:59.6]}
5... Bd6 {[%clk 0:02:52.5]} 6. Bg2 {[%clk 0:02:59.3]} 6... Nbd7 {[%clk
0:02:53.1]} 7. O-O {[%clk 0:02:59.7]} 7... O-O {[%clk 0:02:51.5]} 8. Nfd2 {[%clk
0:02:49.9]} 8... Re8 {[%clk 0:02:46.2]} 9. Nc3 {[%clk 0:02:49.7]} 9... h6 {[%clk
0:02:45.2]} 10. Rd1 {[%clk 0:02:44.9]} 10... a6 {[%clk 0:02:40.8]} 11. e4 {[%clk
0:02:44.5]} 11... dxe4 {[%clk 0:02:40.9]} 12. Ndxe4 {[%clk 0:02:45.4]} 12...
Nxe4 {[%clk 0:02:41.6]} 13. Nxe4 {[%clk 0:02:46.2]} 13... Be7 {[%clk 0:02:42.5]}
14. d5 {[%clk 0:02:32]} 14... exd5 {[%clk 0:02:40]} 15. cxd5 {[%clk 0:02:32.9]}
15... cxd5 {[%clk 0:02:40]} 16. Rxd5 {[%clk 0:02:33.8]} 16... Qb6 {[%clk
0:02:36.2]} 17. Be3 {[%clk 0:02:32.9]} 17... Qe6 {[%clk 0:02:35.3]} 18. Rad1
{[%clk 0:02:20]} 18... Nf6 {[%clk 0:02:32]} 19. Nc5 {[%clk 0:02:08.6]} 19...
Nxd5 {[%clk 0:02:17.5]} 20. Nxe6 {[%clk 0:02:01.5]} 20... Nxe3 {[%clk
0:02:08.5]} 21. fxe3 {[%clk 0:02:02.4]} 21... Bxe6 {[%clk 0:02:08.2]} 22. Bd5
{[%clk 0:02:02.6]} 22... Rac8 {[%clk 0:02:04.8]} 23. Qb3 {[%clk 0:02:02]} 23...
Bxd5 {[%clk 0:02:00.9]} 24. Rxd5 {[%clk 0:02:02.9]} 24... Bf6 {[%clk 0:01:59.3]}
25. Rd7 {[%clk 0:02:00.5]} 25... Rf8 {[%clk 0:01:54.8]} 26. Rxb7 {[%clk
0:01:59.6]} 26... Rcd8 {[%clk 0:01:50.4]} 27. Qc2 {[%clk 0:01:27.2]} 27... Rfe8
{[%clk 0:01:46.9]} 28. Qc4 {[%clk 0:01:23.4]} 28... Re6 {[%clk 0:01:45.1]} 29.
Qc7 {[%clk 0:00:54]} 29... Rxe3 {[%clk 0:01:21.3]} 30. Qxf7+ {[%clk 0:00:52.5]}
30... Kh8 {[%clk 0:01:19.9]} 31. Rd7 {[%clk 0:00:52]} 31... Rc8 {[%clk
0:01:17.5]} 32. Rc7 {[%clk 0:00:49.7]} 32... Rd8 {[%clk 0:01:17.5]} 33. Rd7
{[%clk 0:00:49.6]} 33... Rc8 {[%clk 0:01:15.8]} 34. Rc7 {[%clk 0:00:41.7]} 34...
Rce8 {[%clk 0:01:07.9]} 35. Rc2 {[%clk 0:00:38.5]} 35... Re1+ {[%clk 0:01:04.2]}
36. Kg2 {[%clk 0:00:38.8]} 36... R1e7 {[%clk 0:00:57.8]} 37. Qg6 {[%clk
0:00:38.4]} 37... Re6 {[%clk 0:00:56.9]} 1/2-1/2

[Event "*** Titled Tuesday Blitz"]
[Site "Chess.com"]
[Date "2020.05.19"]
[Round "2"]
[White "51616516516"]
[Black "Khamrakulov_Djurabek"]
[Result "1/2-1/2"]
[WhiteElo "2351"]
[BlackElo "2792"]
[TimeControl "180+1"]
[EndTime "12:17:27 PDT"]
[Termination "Game drawn by agreement"]

1. d4 {[%clk 0:03:00.9]} 1... Nf6 {[%clk 0:02:59.7]} 2. c4 {[%clk 0:02:56.2]}
2... e6 {[%clk 0:02:59.8]} 3. Nc3 {[%clk 0:02:49.9]} 3... Bb4 {[%clk 0:02:58.8]}
4. Qc2 {[%clk 0:02:48.6]} 4... O-O {[%clk 0:02:56.2]} 5. Nf3 {[%clk 0:02:45.8]}
5... c5 {[%clk 0:02:55.1]} 6. dxc5 {[%clk 0:02:44.4]} 6... Na6 {[%clk
0:02:54.9]} 7. g3 {[%clk 0:02:40.3]} 7... Nxc5 {[%clk 0:02:54.7]} 8. Bg2 {[%clk
0:02:39.9]} 8... Nfe4 {[%clk 0:02:54.3]} 9. O-O {[%clk 0:02:38.9]} 9... Bxc3
{[%clk 0:02:52.6]} 10. bxc3 {[%clk 0:02:39.8]} 10... Qa5 {[%clk 0:02:49.7]} 11.
Nd2 {[%clk 0:02:18.2]} 11... Qxc3 {[%clk 0:02:22.3]} 12. Bxe4 {[%clk 0:01:20.4]}
12... Nxe4 {[%clk 0:02:21.8]} 13. Qxe4 {[%clk 0:01:20.7]} 13... Qxa1 {[%clk
0:02:21.6]} 14. Ba3 {[%clk 0:01:16.9]} 14... Qxa2 {[%clk 0:02:21.2]} 15. Bxf8
{[%clk 0:01:15.9]} 15... Kxf8 {[%clk 0:02:22.1]} 16. Nf3 {[%clk 0:01:14.4]}
16... f5 {[%clk 0:02:19]} 17. Qe5 {[%clk 0:01:10.3]} 17... Qa6 {[%clk
0:02:12.1]} 18. Rd1 {[%clk 0:01:05.7]} 18... Qxc4 {[%clk 0:01:43.6]} 19. Qd6+
{[%clk 0:01:04.6]} 19... Ke8 {[%clk 0:01:40.3]} 20. Ne5 {[%clk 0:00:56.3]} 20...
Qb5 {[%clk 0:01:36.5]} 21. h4 {[%clk 0:00:47.1]} 21... a5 {[%clk 0:01:35]} 22.
h5 {[%clk 0:00:42.9]} 22... a4 {[%clk 0:01:33.5]} 23. h6 {[%clk 0:00:43.1]}
23... gxh6 {[%clk 0:01:33.1]} 24. Qd4 {[%clk 0:00:34.4]} 24... a3 {[%clk
0:01:28.4]} 25. Nc4 {[%clk 0:00:30.5]} 25... Qb3 {[%clk 0:00:53.1]} 26. Qh8+
{[%clk 0:00:27.6]} 26... Ke7 {[%clk 0:00:53]} 27. Qg7+ {[%clk 0:00:25.4]} 27...
Kd8 {[%clk 0:00:53.2]} 28. Qf8+ {[%clk 0:00:19.3]} 28... Kc7 {[%clk 0:00:53.4]}
29. Qd6+ {[%clk 0:00:19.7]} 29... Kd8 {[%clk 0:00:53.7]} 30. Qf8+ {[%clk
0:00:20.1]} 30... Kc7 {[%clk 0:00:54]} 31. Qd6+ {[%clk 0:00:20.5]} 31... Kd8
{[%clk 0:00:52.7]} 1/2-1/2

[Event "*** Titled Tuesday Blitz"]
[Site "Chess.com"]
[Date "2020.05.19"]
[Round "2"]
[White "David_Paravyan"]
[Black "IwkooO"]
[Result "1-0"]
[WhiteElo "2882"]
[BlackElo "2545"]
[TimeControl "180+1"]
[EndTime "12:17:31 PDT"]
[Termination "David_Paravyan won by resignation"]

1. e4 {[%clk 0:03:00.9]} 1... c5 {[%clk 0:02:59.9]} 2. Nf3 {[%clk 0:02:55.7]}
2... e6 {[%clk 0:02:58.6]} 3. d4 {[%clk 0:02:54.8]} 3... cxd4 {[%clk 0:02:59.5]}
4. Nxd4 {[%clk 0:02:55.6]} 4... Nc6 {[%clk 0:03:00.2]} 5. Nc3 {[%clk 0:02:55.4]}
5... a6 {[%clk 0:03:00.6]} 6. a3 {[%clk 0:02:55.5]} 6... Nf6 {[%clk 0:02:58.4]}
7. Be3 {[%clk 0:02:54]} 7... d5 {[%clk 0:02:46.1]} 8. exd5 {[%clk 0:02:51.2]}
8... Nxd5 {[%clk 0:02:46]} 9. Nxd5 {[%clk 0:02:48.4]} 9... Qxd5 {[%clk
0:02:46.9]} 10. Be2 {[%clk 0:02:45.2]} 10... Nxd4 {[%clk 0:02:32.4]} 11. Bxd4
{[%clk 0:02:42.5]} 11... Qxg2 {[%clk 0:02:00]} 12. Bf3 {[%clk 0:02:41.3]} 12...
Qg5 {[%clk 0:02:00.4]} 13. Qe2 {[%clk 0:01:37]} 13... Qa5+ {[%clk 0:00:44.9]}
14. b4 {[%clk 0:01:28.3]} 14... Qc7 {[%clk 0:00:41.2]} 15. Qe3 {[%clk
0:00:40.7]} 15... Bd7 {[%clk 0:00:26.2]} 16. Bb6 {[%clk 0:00:35.9]} 16... Qc8
{[%clk 0:00:25]} 17. O-O-O {[%clk 0:00:28.3]} 17... Be7 {[%clk 0:00:24.3]} 18.
Rhg1 {[%clk 0:00:21.7]} 18... O-O {[%clk 0:00:22.8]} 19. Qd4 {[%clk 0:00:19.2]}
19... Bf6 {[%clk 0:00:20.6]} 20. Qxf6 {[%clk 0:00:18.7]} 1-0

[Event "*** Titled Tuesday Blitz"]
[Site "Chess.com"]
[Date "2020.05.19"]
[Round "2"]
[White "francyIM"]
[Black "Gloomy_Wanderer"]
[Result "1-0"]
[WhiteElo "2519"]
[BlackElo "2750"]
[TimeControl "180+1"]
[EndTime "12:17:32 PDT"]
[Termination "francyIM won by resignation"]

1. d4 {[%clk 0:03:00.9]} 1... Nf6 {[%clk 0:02:59]} 2. c4 {[%clk 0:03:00.8]} 2...
e6 {[%clk 0:02:59.3]} 3. Nc3 {[%clk 0:03:00.1]} 3... Bb4 {[%clk 0:02:58.3]} 4.
f3 {[%clk 0:03:00.4]} 4... c5 {[%clk 0:02:58.2]} 5. d5 {[%clk 0:02:58.6]} 5...
O-O {[%clk 0:02:58.2]} 6. e4 {[%clk 0:02:55.6]} 6... exd5 {[%clk 0:02:58.2]} 7.
cxd5 {[%clk 0:02:52.8]} 7... d6 {[%clk 0:02:58.4]} 8. Bg5 {[%clk 0:02:50.7]}
8... h6 {[%clk 0:02:47.5]} 9. Bh4 {[%clk 0:02:48]} 9... Nbd7 {[%clk 0:02:47.6]}
10. Ne2 {[%clk 0:02:38.7]} 10... Ne5 {[%clk 0:02:42.6]} 11. a3 {[%clk
0:02:30.1]} 11... Ba5 {[%clk 0:02:41.9]} 12. Bf2 {[%clk 0:02:23.9]} 12... b5
{[%clk 0:02:27.7]} 13. Nc1 {[%clk 0:02:14.6]} 13... b4 {[%clk 0:02:02.7]} 14.
axb4 {[%clk 0:01:59.3]} 14... cxb4 {[%clk 0:02:02.8]} 15. Nb1 {[%clk 0:01:59.3]}
15... Bb6 {[%clk 0:01:47.9]} 16. Qd2 {[%clk 0:01:23.1]} 16... a5 {[%clk
0:01:46.9]} 17. Bxb6 {[%clk 0:01:19.5]} 17... Qxb6 {[%clk 0:01:46.2]} 18. Nb3
{[%clk 0:01:20]} 18... Ba6 {[%clk 0:01:36]} 19. Rxa5 {[%clk 0:01:16.1]} 19...
Bxf1 {[%clk 0:01:05.2]} 20. Rxa8 {[%clk 0:01:14.8]} 20... Rxa8 {[%clk
0:01:05.9]} 21. Kxf1 {[%clk 0:01:14.6]} 21... Nc4 {[%clk 0:01:05.6]} 22. Qd4
{[%clk 0:01:03.8]} 22... Qxd4 {[%clk 0:00:50.4]} 23. Nxd4 {[%clk 0:01:04.7]}
23... Nxb2 {[%clk 0:00:51]} 24. Ke2 {[%clk 0:01:02.7]} 24... Ra2 {[%clk
0:00:50.6]} 25. Nd2 {[%clk 0:01:02.2]} 25... Nc4 {[%clk 0:00:50.1]} 26. Nb3
{[%clk 0:01:01.8]} 26... Nxd2 {[%clk 0:00:45.2]} 27. Nxd2 {[%clk 0:01:01.5]}
27... Nd7 {[%clk 0:00:46.1]} 28. Rb1 {[%clk 0:01:00.2]} 28... Ra4 {[%clk
0:00:34]} 29. Nc4 {[%clk 0:00:59.6]} 29... Nc5 {[%clk 0:00:28.5]} 30. Nxd6
{[%clk 0:00:58.8]} 30... Ra2+ {[%clk 0:00:28.8]} 31. Ke3 {[%clk 0:00:57.7]}
31... b3 {[%clk 0:00:28.4]} 32. Kd4 {[%clk 0:00:56.5]} 32... Rc2 {[%clk
0:00:19.2]} 33. Nc4 {[%clk 0:00:55.1]} 1-0

[Event "*** Titled Tuesday Blitz"]
[Site "Chess.com"]
[Date "2020.05.19"]
[Round "2"]
[White "Robert_Chessmood"]
[Black "Kopytkin"]
[Result "1-0"]
[WhiteElo "2902"]
[BlackElo "2344"]
[TimeControl "180+1"]
[EndTime "12:17:35 PDT"]
[Termination "Robert_Chessmood won by resignation"]

1. e4 {[%clk 0:03:00.9]} 1... c6 {[%clk 0:02:56.6]} 2. Nf3 {[%clk 0:03:00]} 2...
d5 {[%clk 0:02:56.6]} 3. d3 {[%clk 0:03:00.5]} 3... g6 {[%clk 0:02:54.3]} 4. Qe2
{[%clk 0:02:58.8]} 4... Bg7 {[%clk 0:02:54.4]} 5. g3 {[%clk 0:02:56.8]} 5...
dxe4 {[%clk 0:02:38.4]} 6. dxe4 {[%clk 0:02:57.7]} 6... Nf6 {[%clk 0:02:38.2]}
7. Bg2 {[%clk 0:02:56.9]} 7... O-O {[%clk 0:02:38.3]} 8. O-O {[%clk 0:02:56.6]}
8... c5 {[%clk 0:02:38.6]} 9. e5 {[%clk 0:02:52.2]} 9... Nd5 {[%clk 0:02:37.1]}
10. c4 {[%clk 0:02:50.1]} 10... Nb4 {[%clk 0:02:35.7]} 11. Rd1 {[%clk 0:02:40]}
11... Qc7 {[%clk 0:02:32.6]} 12. Nc3 {[%clk 0:02:34.7]} 12... Bf5 {[%clk
0:02:15.7]} 13. Bf4 {[%clk 0:02:23.5]} 13... Qb6 {[%clk 0:02:02.8]} 14. Rd2
{[%clk 0:02:10]} 14... N8c6 {[%clk 0:01:47.9]} 15. a3 {[%clk 0:02:05]} 15... Na6
{[%clk 0:01:47.9]} 16. Nd5 {[%clk 0:02:03.3]} 16... Qa5 {[%clk 0:01:48]} 17. Qd1
{[%clk 0:01:45.9]} 17... g5 {[%clk 0:00:44]} 18. b4 {[%clk 0:01:38.7]} 18...
cxb4 {[%clk 0:00:42.3]} 19. axb4 {[%clk 0:01:39.6]} 19... Qd8 {[%clk 0:00:42.1]}
20. Bxg5 {[%clk 0:01:38.1]} 20... Qe8 {[%clk 0:00:34.7]} 21. b5 {[%clk
0:01:35.9]} 21... Nxe5 {[%clk 0:00:31.8]} 22. Nxe5 {[%clk 0:01:31.5]} 22... Bxe5
{[%clk 0:00:32.7]} 23. bxa6 {[%clk 0:01:30.2]} 23... bxa6 {[%clk 0:00:32.9]} 24.
Ra5 {[%clk 0:01:24.7]} 24... f6 {[%clk 0:00:30.3]} 25. Bf4 {[%clk 0:01:20.4]}
25... Rc8 {[%clk 0:00:25.6]} 26. Bxe5 {[%clk 0:01:17]} 26... fxe5 {[%clk
0:00:26.5]} 27. Ne3 {[%clk 0:01:17.3]} 27... Bg6 {[%clk 0:00:24.7]} 28. Rxe5
{[%clk 0:01:15.9]} 28... Rf6 {[%clk 0:00:21.6]} 29. Rd7 {[%clk 0:01:14.9]} 29...
Qf8 {[%clk 0:00:16.8]} 30. Rexe7 {[%clk 0:01:12.2]} 30... Rxf2 {[%clk
0:00:15.6]} 31. Bd5+ {[%clk 0:01:12.7]} 31... Kh8 {[%clk 0:00:15.1]} 32. Qd4+
{[%clk 0:01:12]} 32... Qf6 {[%clk 0:00:15.7]} 33. Qxf6+ {[%clk 0:01:06]} 33...
Rxf6 {[%clk 0:00:16.6]} 34. Ng4 {[%clk 0:01:06.5]} 34... Rff8 {[%clk 0:00:13]}
35. Ne5 {[%clk 0:01:05.1]} 1-0